bitfinex/quotes_BTCUSD_20241203
["timestamp","ask_amount","ask_price","bid_price","bid_amount"]
[1733221525786,0.01351439,95535.0,95534.0,0.0067266]
[1733221526019,0.01351439,95535.0,95534.0,0.0027266]
[1733221526248,0.01351439,95535.0,95534.0,0.0037266]
[1733221530457,0.01351439,95535.0,95534.0,0.0027266]
[1733221532432,0.00263376,95535.0,95534.0,0.0037266]
[1733221548621,0.00263376,95535.0,95534.0,0.0863266]
[1733221548846,0.01174924,95540.0,95534.0,0.0863266]
[1733221549090,0.00232344,95535.0,95534.0,0.0863266]
[1733221549290,0.01174924,95540.0,95534.0,0.0863266]
[1733221549501,0.00232344,95535.0,95534.0,0.09561746]
[1733221549663,0.209341,95538.0,95534.0,0.09561746]
[1733221549866,0.00232344,95535.0,95534.0,0.09561746]
[1733221550300,0.209341,95538.0,95534.0,0.09561746]
[1733221550526,0.00232344,95535.0,95534.0,0.09461746]
[1733221550665,0.0008633,95535.0,95534.0,0.09461746]
[1733221550872,0.00318674,95535.0,95534.0,0.0853266]
[1733221551862,0.00318674,95535.0,95534.0,0.0027266]
[1733221552314,0.00318674,95535.0,95534.0,0.0047266]
[1733221553501,0.209341,95538.0,95534.0,0.0047266]
[1733221554647,0.4295694,95538.0,95534.0,0.0047266]
[1733221555035,0.4295694,95538.0,95534.0,0.0027266]
[1733221555241,0.4295694,95538.0,95534.0,0.0037266]
[1733221555646,0.418682,95538.0,95534.0,0.0037266]
[1733221555844,0.209345,95536.0,95534.0,0.0037266]
[1733221557027,0.209345,95536.0,95534.0,0.0027266]
[1733221558031,0.22023314,95536.0,95534.0,0.0047266]
[1733221558181,0.209345,95536.0,95534.0,0.0047266]
[1733221558386,0.01088814,95535.0,95534.0,0.0047266]
[1733221559587,0.01088814,95535.0,95534.0,0.0027266]
[1733221560423,0.01088814,95535.0,95534.0,0.0047266]
[1733221561099,0.01088814,95535.0,95534.0,0.01340746]
[1733221561326,0.01088814,95535.0,95534.0,0.0047266]
[1733221562535,0.2102084,95536.0,95534.0,0.0047266]
[1733221563735,0.2102084,95536.0,95534.0,0.0037266]
[1733221563944,0.01088865,95535.0,95534.0,0.0037266]
[1733221564066,0.01088865,95535.0,95534.0,0.0017266]
[1733221564292,0.01088865,95535.0,95534.0,0.0037266]
[1733221564498,0.01088865,95535.0,95534.0,0.0017266]
[1733221567085,0.01088865,95535.0,95534.0,0.0027266]
[1733221568532,0.0137147,95535.0,95534.0,0.0027266]
[1733221571794,0.0175847,95535.0,95534.0,0.0027266]
[1733221583777,0.1675847,95535.0,95534.0,0.0027266]
[1733221583955,0.1681423,95535.0,95534.0,0.0027266]
[1733221591809,0.27285489,95535.0,95534.0,0.0027266]
[1733221607246,0.27704789,95535.0,95534.0,0.0027266]
[1733221614720,0.27649029,95535.0,95534.0,0.0027266]
[1733221615130,0.27704789,95535.0,95534.0,0.0027266]
[1733221615337,0.35854789,95535.0,95534.0,0.0027266]
[1733221615898,0.35854789,95535.0,95534.0,0.0017266]
[1733221616097,0.36454789,95535.0,95534.0,0.0017266]
[1733221616511,0.36154789,95535.0,95534.0,0.0017266]
[1733221617298,0.35854789,95535.0,95534.0,0.0017266]
[1733221617739,0.57254789,95535.0,95534.0,0.0020006]
[1733221620542,0.57254789,95535.0,95534.0,6e-07]
[1733221621480,0.57254789,95535.0,95534.0,0.0017274]
[1733221628305,0.49104789,95535.0,95534.0,0.0017274]
[1733221629234,0.27833319,95535.0,95534.0,0.0017274]
[1733221630677,0.27833319,95535.0,95534.0,0.1282274]
[1733221631052,0.27777559,95535.0,95534.0,0.1282274]
[1733221631246,0.27358259,95535.0,95534.0,0.1282274]
[1733221631424,0.00987,95535.0,95534.0,0.1282268]
[1733221631632,0.00016737,95535.0,95534.0,0.1282268]
[1733221631857,0.01316737,95535.0,95534.0,0.1292268]
[1733221632186,0.01316737,95535.0,95534.0,0.1282268]
[1733221632381,0.01816737,95535.0,95534.0,0.1282268]
[1733221633016,0.16816737,95535.0,95534.0,0.1282268]
[1733221633232,0.16316737,95535.0,95534.0,0.1282268]
[1733221633430,0.16716737,95535.0,95534.0,0.1282268]
[1733221633881,0.16803077,95535.0,95534.0,0.1282268]
[1733221634078,0.16803077,95535.0,95534.0,0.1276658]
[1733221636861,0.16788351,95535.0,95534.0,0.1276658]
[1733221642311,0.01838671,95535.0,95534.0,0.1276658]
[1733221642699,0.0008634,95536.0,95534.0,0.1276658]
[1733221642900,0.31492099,95536.0,95534.0,0.1276658]
[1733221643712,0.31547859,95536.0,95534.0,0.1276658]
[1733221643909,0.31947859,95536.0,95534.0,0.1276658]
[1733221644116,0.32447859,95536.0,95534.0,0.1286658]
[1733221647745,0.15,95535.0,95534.0,0.1286658]
[1733221648892,0.15,95535.0,95534.0,0.1276658]
[1733221649361,0.153,95535.0,95534.0,0.1276658]
[1733221651860,0.153,95535.0,95534.0,0.12761217]
[1733221653578,0.003,95535.0,95534.0,0.12761217]
[1733221654085,0.15582605,95535.0,95534.0,0.07881217]
[1733221656403,0.26053864,95535.0,95534.0,0.00111217]
[1733221657432,0.26140204,95535.0,95534.0,0.00111217]
[1733221658382,0.26140204,95535.0,95534.0,0.00100528]
[1733221663790,0.25104595,95535.0,95534.0,0.00100528]
[1733221664228,0.10840204,95535.0,95534.0,0.00100528]
[1733221666148,0.25840204,95535.0,95534.0,0.00100528]
[1733221668007,0.25895964,95535.0,95534.0,0.00100528]
[1733221673445,0.10976105,95535.0,95534.0,0.00100528]
[1733221673810,0.0005576,95535.0,95534.0,0.00100528]
[1733221675708,0.1505576,95535.0,95534.0,0.00100528]
[1733221679351,0.00126903,95535.0,95534.0,0.08350528]
[1733221679553,0.2102084,95536.0,95534.0,0.09232875]
[1733221680822,0.2172084,95536.0,95534.0,0.08350528]
[1733221681259,0.0008634,95535.0,95534.0,0.08350528]
[1733221682871,0.0038634,95535.0,95534.0,0.08350528]
[1733221683621,0.0068634,95535.0,95534.0,0.08350528]
[1733221687599,0.1568634,95535.0,95534.0,0.08350528]
[1733221695456,0.1568634,95535.0,95534.0,0.00100528]
[1733221701248,0.0068634,95535.0,95534.0,0.00100528]
[1733221707675,0.1568634,95535.0,95534.0,0.00100528]
[1733221712482,0.15658601,95535.0,95534.0,0.00100528]
[1733221719465,0.15658601,95535.0,95534.0,0.00069028]
[1733221729103,0.2612986,95535.0,95534.0,0.00069028]
[1733221741175,0.27222424,95535.0,95534.0,0.00069028]
[1733221744493,0.47122424,95535.0,95534.0,0.00069028]
[1733221745354,0.46822424,95535.0,95534.0,0.00069028]
[1733221745566,0.47622424,95535.0,95534.0,0.00169028]
[1733221745816,0.47322424,95535.0,95534.0,0.00169028]
[1733221746030,0.15,95522.0,95518.0,0.24784356]
[1733221746277,0.209395,95513.0,95512.0,0.03313014]
[1733221746486,0.209395,95513.0,95512.0,0.03319766]
[1733221747768,0.211395,95513.0,95512.0,0.03319766]
[1733221748612,0.212395,95513.0,95512.0,0.03319766]
[1733221751238,0.212395,95513.0,95512.0,0.03219692]
[1733221751698,0.212395,95513.0,95512.0,0.01583972]
[1733221757414,0.212395,95513.0,95512.0,6.752e-05]
[1733221759068,0.362395,95513.0,95512.0,6.752e-05]
[1733221759485,0.35233307,95513.0,95512.0,6.752e-05]
[1733221759687,0.35233307,95513.0,95512.0,0.00179432]
[1733221763381,0.35233307,95513.0,95512.0,0.13179432]
[1733221764419,0.002,95513.0,95512.0,0.13279432]
[1733221764827,0.15,95517.0,95513.0,0.0786]
[1733221765042,0.15,95515.0,95513.0,0.0786]
[1733221766155,0.152,95517.0,95513.0,0.0786]
[1733221766368,0.15,95515.0,95513.0,0.0786]
[1733221766800,0.02137708,95514.0,95513.0,0.0796]
[1733221768081,0.02137708,95514.0,95513.0,0.0806]
[1733221768729,0.02237708,95514.0,95513.0,0.0806]
[1733221771333,0.001,95514.0,95513.0,0.0806]
[1733221773308,0.00115286,95516.0,95513.0,0.0806]
[1733221773774,0.209387,95517.0,95513.0,0.0806]
[1733221774467,0.209387,95517.0,95513.0,0.0796]
[1733221774922,0.001,95516.0,95513.0,0.0796]
[1733221775374,0.209387,95517.0,95513.0,0.0796]
[1733221775811,0.211387,95517.0,95513.0,0.0796]
[1733221776448,0.212387,95517.0,95513.0,0.0796]
[1733221778120,0.15,95516.0,95513.0,0.0796]
[1733221778544,0.209391,95515.0,95513.0,0.0796]
[1733221781035,0.210391,95515.0,95513.0,0.0796]
[1733221782042,0.001,95515.0,95513.0,0.0796]
[1733221783282,0.001,95515.0,95513.0,0.0813272]
[1733221783489,0.0018636,95515.0,95513.0,0.0813272]
[1733221790910,0.0018636,95515.0,95514.0,0.0833]
[1733221791129,0.0018636,95515.0,95514.0,0.08515291]
[1733221791773,0.0008636,95515.0,95514.0,0.08515291]
[1733221792192,0.0018636,95515.0,95514.0,0.08515291]
[1733221792972,0.0018636,95515.0,95514.0,0.29454591]
[1733221793175,0.0018636,95515.0,95514.0,0.292693]
[1733221793813,0.0018636,95515.0,95514.0,0.0833]
[1733221793995,0.00172192,95515.0,95514.0,0.08515292]
[1733221796679,0.00172192,95515.0,95514.0,0.0833]
[1733221796905,0.00172192,95515.0,95514.0,0.1394019]
[1733221797123,0.00172192,95515.0,95514.0,0.0833]
[1733221797545,0.00172192,95515.0,95514.0,0.001]
[1733221798997,0.00172192,95515.0,95514.0,0.00096]
[1733221802405,0.02320396,95515.0,95514.0,0.00096]
[1733221803514,0.02320396,95515.0,95513.0,0.0017272]
[1733221803724,0.209393,95514.0,95513.0,0.0017272]
[1733221803930,0.288393,95514.0,95513.0,0.0017272]
[1733221804939,0.29934807,95514.0,95513.0,0.0017272]
[1733221805564,0.30134807,95514.0,95513.0,0.0017272]
[1733221805979,0.29934807,95514.0,95513.0,0.0017272]
[1733221806407,0.30634807,95514.0,95513.0,0.0027272]
[1733221806610,0.31134807,95514.0,95513.0,0.0027272]
[1733221807948,0.221393,95514.0,95513.0,0.0027272]
[1733221809828,0.221393,95514.0,95513.0,0.0036872]
[1733221810029,0.012,95514.0,95513.0,0.0036872]
[1733221811187,0.007,95514.0,95513.0,0.0036872]
[1733221811414,0.21011292,95515.0,95513.0,0.0026872]
[1733221811613,0.00072192,95515.0,95513.0,0.0066872]
[1733221812024,0.0210744,95514.0,95513.0,0.0066872]
[1733221812479,0.0210744,95514.0,95513.0,0.0036872]
[1733221812861,0.0210744,95514.0,95513.0,0.0056872]
[1733221813065,0.0210744,95514.0,95513.0,0.0026872]
[1733221814457,0.0210744,95514.0,95513.0,0.0056872]
[1733221814863,0.0210744,95514.0,95513.0,0.0066872]
[1733221816455,0.209393,95514.0,95513.0,0.0066872]
[1733221821765,0.23057073,95514.0,95513.0,0.0066872]
[1733221822413,0.23057073,95514.0,95513.0,0.0026872]
[1733221822624,0.23057073,95514.0,95513.0,0.0036872]
[1733221825445,0.23057073,95514.0,95513.0,0.0027272]
[1733221826700,0.209393,95514.0,95513.0,0.0027272]
[1733221827976,0.359393,95514.0,95513.0,0.0027272]
[1733221828180,0.45305335,95514.0,95513.0,0.0027272]
[1733221832162,0.45391695,95514.0,95513.0,0.0027272]
[1733221833441,0.47442587,95514.0,95513.0,0.0027272]
[1733221834077,0.39172587,95514.0,95513.0,0.0027272]
[1733221835140,0.38076552,95514.0,95513.0,0.0027272]
[1733221836952,0.3602566,95514.0,95513.0,0.0027272]
[1733221842430,0.3813891,95514.0,95513.0,0.0027272]
[1733221843086,0.3602566,95514.0,95513.0,0.0027272]
[1733221844492,0.38071796,95514.0,95513.0,0.0027272]
[1733221846673,0.3602566,95514.0,95513.0,0.0027272]
[1733221851715,0.38138284,95514.0,95513.0,0.0027272]
[1733221856824,0.3602566,95514.0,95513.0,0.0027272]
[1733221858374,0.3602566,95514.0,95513.0,0.00302578]
[1733221859864,0.35838638,95514.0,95513.0,0.00302578]
[1733221860333,0.0008636,95514.0,95513.0,0.00302578]
[1733221861763,0.3602566,95514.0,95513.0,0.00302578]
[1733221861960,0.38129372,95514.0,95513.0,0.00302578]
[1733221864523,0.3602566,95514.0,95513.0,0.00302578]
[1733221866437,0.38138391,95514.0,95513.0,0.00302578]
[1733221866626,0.3602566,95514.0,95513.0,0.00302578]
[1733221867684,0.3602566,95514.0,95513.0,0.00398578]
[1733221867914,0.0008636,95514.0,95513.0,0.00398578]
[1733221868114,0.0008636,95514.0,95513.0,0.01207379]
[1733221868530,0.0008636,95514.0,95513.0,0.00398578]
[1733221870903,0.0008636,95514.0,95513.0,0.00302578]
[1733221871522,0.0008636,95514.0,95513.0,0.00398578]
[1733221871733,0.0008636,95514.0,95513.0,0.00302578]
[1733221873716,0.02137649,95514.0,95513.0,0.00302578]
[1733221876707,0.0008636,95514.0,95513.0,0.00302578]
[1733221877730,0.0008636,95514.0,95513.0,0.00299704]
[1733221880773,0.0005644,95514.0,95513.0,0.00299704]
[1733221881760,0.02137421,95514.0,95513.0,0.00299704]
[1733221884507,0.0005644,95514.0,95513.0,0.00299704]
[1733221885348,0.01153414,95514.0,95513.0,0.00299704]
[1733221886901,0.0005644,95514.0,95513.0,0.00299704]
[1733221891554,0.01153722,95514.0,95513.0,0.00299704]
[1733221891751,0.01125531,95514.0,95513.0,0.00299704]
[1733221893962,0.0319823,95514.0,95513.0,0.00299704]
[1733221895290,0.0319823,95514.0,95513.0,0.00199704]
[1733221895492,0.0359823,95514.0,95513.0,0.00199704]
[1733221895896,0.14369489,95514.0,95513.0,0.00199704]
[1733221896098,0.29369489,95514.0,95513.0,0.00199704]
[1733221896326,0.29069489,95514.0,95513.0,0.00199704]
[1733221896686,0.2789679,95514.0,95513.0,0.00199704]
[1733221896886,0.2699679,95514.0,95513.0,0.00199704]
[1733221897325,0.2759679,95514.0,95513.0,0.00199704]
[1733221898774,0.27562145,95514.0,95513.0,0.00199704]
[1733221899894,0.27648485,95514.0,95513.0,0.00199704]
[1733221901551,0.27048485,95514.0,95513.0,0.00199704]
[1733221901751,0.29766528,95514.0,95513.0,0.00199704]
[1733221902375,0.29366528,95514.0,95513.0,0.00199704]
[1733221902582,0.29766528,95514.0,95513.0,0.00199704]
[1733221905786,0.27648485,95514.0,95513.0,0.00199704]
[1733221907934,0.26557599,95514.0,95513.0,0.00199704]
[1733221910659,0.34437599,95514.0,95513.0,0.00199704]
[1733221910884,0.35528989,95514.0,95513.0,0.00199704]
[1733221912389,0.35428989,95514.0,95513.0,0.00199704]
[1733221913005,0.27548989,95514.0,95513.0,0.00199704]
[1733221913837,0.26457599,95514.0,95513.0,0.00199704]
[1733221919621,0.25457599,95514.0,95513.0,0.00199704]
[1733221920068,0.26157599,95514.0,95513.0,0.00199704]
[1733221920532,0.25857599,95514.0,95513.0,0.00199704]
[1733221920742,0.26257599,95514.0,95513.0,0.00199704]
[1733221921172,0.25857599,95514.0,95513.0,0.00199704]
[1733221921794,0.26457599,95514.0,95513.0,0.00199704]
[1733221922002,0.26057599,95514.0,95513.0,0.00199704]
[1733221922415,0.25957599,95514.0,95513.0,0.00199704]
[1733221922626,0.26757599,95514.0,95513.0,0.00299704]
[1733221922824,0.26257599,95514.0,95513.0,0.00299704]
[1733221923031,0.26253061,95514.0,95513.0,0.00299704]
[1733221923235,0.25943966,95514.0,95513.0,0.00199704]
[1733221924718,0.26743966,95514.0,95513.0,0.00299704]
[1733221924929,0.26743966,95514.0,95513.0,0.0027272]
[1733221934176,0.27296091,95514.0,95513.0,0.0027272]
[1733221942079,0.26743966,95514.0,95513.0,0.0027272]
[1733221968166,0.418843,95501.0,95498.0,0.00080964]
[1733221968368,0.418843,95501.0,95498.0,0.0008895]
[1733221969311,0.418843,95501.0,95498.0,0.0026163]
[1733221969537,0.420843,95501.0,95498.0,0.0026163]
[1733221970203,0.422843,95501.0,95498.0,0.0026163]
[1733221974869,0.422843,95501.0,95498.0,0.00285295]
[1733221979817,0.422843,95501.0,95498.0,0.00204331]
[1733221985653,0.213421,95501.0,95498.0,0.00204331]
[1733221986929,0.422843,95501.0,95498.0,0.19030764]
[1733221987153,0.213421,95501.0,95498.0,0.19030764]
[1733221987947,0.422843,95501.0,95498.0,0.19030764]
[1733221988489,0.213421,95501.0,95498.0,0.19030764]
[1733221989734,0.422843,95501.0,95498.0,0.00204331]
[1733221989951,0.422843,95501.0,95500.0,0.18828957]
[1733221990137,0.572843,95501.0,95500.0,0.18852625]
[1733221990771,0.570843,95501.0,95500.0,0.18852625]
[1733221990972,0.568843,95501.0,95500.0,0.18852625]
[1733221991182,0.570843,95501.0,95500.0,0.18852625]
[1733221992348,0.572843,95501.0,95500.0,0.18852625]
[1733221992758,0.5737065,95501.0,95500.0,0.18852625]
[1733221993848,0.5737065,95501.0,95500.0,0.00023668]
[1733222001443,0.0048635,95501.0,95500.0,0.00023668]
[1733222001669,0.0048635,95501.0,95500.0,0.07713668]
[1733222001880,0.0048635,95501.0,95500.0,0.12758985]
[1733222002091,0.0028635,95501.0,95500.0,0.41004542]
[1733222002311,0.0028635,95501.0,95500.0,0.40794322]
[1733222002558,0.0048635,95501.0,95500.0,0.12573668]
[1733222002778,0.0028635,95501.0,95500.0,0.12758976]
[1733222002984,0.0008635,95501.0,95500.0,0.12758976]
[1733222003193,0.0028635,95501.0,95500.0,0.12758976]
[1733222003409,0.0018635,95501.0,95500.0,0.4097192]
[1733222003646,0.0018635,95501.0,95500.0,0.40786612]
[1733222003847,0.0018635,95501.0,95500.0,0.25537173]
[1733222004273,0.0018635,95501.0,95500.0,0.23044927]
[1733222004697,0.0008635,95501.0,95500.0,0.23044927]
[1733222005125,0.0018635,95501.0,95500.0,0.23044927]
[1733222005539,0.0008635,95501.0,95500.0,0.23044927]
[1733222005970,0.0008635,95501.0,95500.0,0.23544927]
[1733222006413,0.0018635,95501.0,95500.0,0.23844927]
[1733222006631,0.0018635,95501.0,95500.0,0.23044927]
[1733222006834,0.1982636,95542.0,95501.0,0.0763]
[1733222007043,0.209371,95524.0,95512.0,0.39722961]
[1733222007248,0.041926,95539.0,95513.0,0.00185291]
[1733222007469,0.041926,95539.0,95513.0,0.00208959]
[1733222007470,0.20936,95530.0,95513.0,0.00208959]
[1733222007694,0.209377,95522.0,95513.0,0.00208959]
[1733222009059,0.209377,95522.0,95513.0,0.21148359]
[1733222009269,0.209378,95521.0,95513.0,0.00208959]
[1733222009476,0.15,95529.0,95513.0,0.00208959]
[1733222009681,0.209378,95521.0,95513.0,0.00208959]
[1733222010091,0.209369,95525.0,95513.0,0.00408959]
[1733222010304,0.15,95529.0,95513.0,0.00408959]
[1733222010514,0.209371,95524.0,95513.0,0.00208959]
[1733222010719,0.20938,95521.0,95513.0,0.00208959]
[1733222011764,0.209371,95524.0,95513.0,0.00208959]
[1733222011973,0.209371,95524.0,95514.0,0.209393]
[1733222012180,0.209371,95524.0,95515.0,0.00185291]
[1733222012389,0.209366,95527.0,95515.0,0.00208959]
[1733222012575,0.15,95526.0,95516.0,0.209389]
[1733222012808,0.15,95526.0,95516.0,0.00208957]
[1733222012993,0.001,95524.0,95516.0,0.00208957]
[1733222013231,0.001,95524.0,95517.0,0.209386]
[1733222013441,0.15,95526.0,95518.0,0.04869299]
[1733222013645,0.15,95526.0,95518.0,0.00023667]
[1733222014677,0.209369,95525.0,95518.0,0.00023667]
[1733222015855,0.418738,95525.0,95518.0,0.00223667]
[1733222016062,0.418738,95525.0,95518.0,0.00023667]
[1733222016491,0.418738,95525.0,95518.0,0.00223667]
[1733222016706,0.209369,95525.0,95518.0,0.00223667]
[1733222017252,0.418742,95524.0,95518.0,0.00223667]
[1733222018455,0.418742,95524.0,95518.0,0.00023667]
[1733222018662,0.418742,95524.0,95518.0,0.00123667]
[1733222018883,0.209381,95520.0,95518.0,0.00123667]
[1733222019078,0.20934095,95520.0,95518.0,0.00123667]
[1733222020128,0.209375,95523.0,95518.0,0.00023667]
[1733222020353,0.209375,95523.0,95518.0,0.00323667]
[1733222021635,0.209375,95523.0,95518.0,0.00023667]
[1733222021852,0.209375,95523.0,95518.0,0.00123667]
[1733222022940,0.05836509,95523.0,95518.0,0.00123667]
[1733222023133,0.3602304,95526.0,95518.0,0.00123667]
[1733222024357,0.5695974,95526.0,95518.0,0.00123667]
[1733222024561,0.209376,95522.0,95518.0,0.00123667]
[1733222024717,0.209376,95522.0,95518.0,0.00023667]
[1733222026155,0.209376,95522.0,95518.0,0.00223667]
[1733222030251,0.5695974,95526.0,95518.0,0.00223667]
[1733222030567,0.15,95524.0,95518.0,0.00223667]
[1733222031268,0.418746,95523.0,95518.0,0.00223667]
[1733222031540,0.209373,95523.0,95518.0,0.00023667]
[1733222031784,0.209373,95523.0,95518.0,0.00123667]
[1733222032244,0.418747,95523.0,95518.0,0.00123667]
[1733222032476,0.418747,95523.0,95518.0,0.00023667]
[1733222032955,0.209373,95523.0,95518.0,0.00023667]
[1733222033193,0.209373,95523.0,95518.0,0.00123667]
[1733222035507,0.15,95524.0,95518.0,0.00123667]
[1733222036682,0.359371,95524.0,95518.0,0.00123667]
[1733222037457,0.360371,95524.0,95518.0,0.00123667]
[1733222037700,0.360371,95524.0,95518.0,0.00023667]
[1733222037967,0.360371,95524.0,95518.0,0.00123667]
[1733222039166,0.36021196,95524.0,95518.0,0.00123667]
[1733222040303,0.15084096,95524.0,95518.0,0.00123667]
[1733222040516,0.001,95524.0,95518.0,0.00296307]
[1733222040785,0.0018632,95524.0,95520.0,0.20938]
[1733222040995,0.0018632,95524.0,95521.0,0.00185279]
[1733222041213,0.0018632,95524.0,95521.0,0.00208946]
[1733222041849,0.0008632,95524.0,95521.0,0.00208946]
[1733222042272,0.0008632,95524.0,95521.0,0.00023667]
[1733222042716,0.0008632,95524.0,95521.0,0.00123667]
[1733222043133,0.0018632,95524.0,95521.0,0.00123667]
[1733222043555,0.0008632,95524.0,95521.0,0.00123667]
[1733222043972,0.0008632,95524.0,95521.0,0.00223667]
[1733222044675,0.0008632,95524.0,95521.0,0.05394295]
[1733222044928,0.0008632,95524.0,95522.0,0.209375]
[1733222045162,0.0008632,95524.0,95523.0,0.0826]
[1733222045394,0.0008632,95524.0,95523.0,0.08445271]
[1733222045606,0.0008632,95524.0,95523.0,0.08468937]
[1733222045813,0.0008632,95524.0,95523.0,0.18752083]
[1733222047093,0.0008632,95524.0,95523.0,0.42220296]
[1733222047300,0.0008632,95524.0,95523.0,0.18566811]
[1733222047504,0.0008632,95524.0,95523.0,0.18852083]
[1733222048236,0.0008632,95524.0,95523.0,0.19252083]
[1733222050970,0.0008632,95524.0,95523.0,0.19252082]
[1733222054245,0.00074288,95524.0,95523.0,0.19252082]
[1733222055673,0.00074288,95524.0,95523.0,0.08968936]
[1733222056291,0.00074288,95524.0,95523.0,0.24188568]
[1733222056496,0.00074288,95524.0,95523.0,0.00523664]
[1733222056909,0.00074288,95524.0,95523.0,0.19308899]
[1733222057339,0.00074288,95524.0,95523.0,0.19208899]
[1733222057750,0.00074288,95524.0,95523.0,0.18808899]
[1733222059226,0.00074288,95524.0,95523.0,0.00123664]
[1733222059644,0.00074288,95524.0,95523.0,0.00323664]
[1733222059877,0.00074288,95524.0,95523.0,0.00023664]
[1733222060087,0.00074288,95524.0,95523.0,0.00223664]
[1733222062275,0.00074288,95524.0,95523.0,0.19008899]
[1733222062483,0.00074288,95524.0,95523.0,0.00223664]
[1733222062900,0.19547948,95525.0,95523.0,0.00223664]
[1733222063551,0.19447948,95525.0,95523.0,0.00223664]
[1733222063975,0.19447948,95525.0,95523.0,0.00023664]
[1733222064390,0.19447948,95525.0,95523.0,0.00223664]
[1733222065058,0.19447948,95525.0,95523.0,0.19008899]
[1733222066340,0.19447948,95525.0,95523.0,0.00223664]
[1733222066544,0.19447948,95525.0,95523.0,0.00396304]
[1733222066796,0.19534268,95525.0,95523.0,0.00396304]
[1733222074102,0.19247998,95525.0,95523.0,0.00396304]
[1733222076993,0.02142401,95524.0,95523.0,0.00396304]
[1733222077870,0.10452401,95524.0,95523.0,0.00396304]
[1733222078053,0.209373,95523.0,95518.0,0.18959406]
[1733222078288,0.10452401,95524.0,95518.0,0.18959406]
[1733222078710,0.10452401,95524.0,95523.0,0.003]
[1733222078971,0.418746,95523.0,95518.0,0.18959406]
[1733222079179,0.10452401,95524.0,95518.0,0.0047264]
[1733222079367,0.10452401,95524.0,95523.0,0.0017264]
[1733222081887,0.0831,95524.0,95523.0,0.0017264]
[1733222082375,0.0831,95524.0,95523.0,0.0037264]
[1733222086012,0.19247998,95525.0,95523.0,0.0465419]
[1733222086221,0.19247998,95525.0,95523.0,0.0037264]
[1733222086872,0.02140174,95524.0,95523.0,0.0037264]
[1733222088009,0.02140174,95524.0,95523.0,0.0017264]
[1733222088414,0.02140174,95524.0,95523.0,0.0037264]
[1733222088597,0.02140174,95524.0,95523.0,0.0017264]
[1733222089066,0.02140174,95524.0,95523.0,0.0047264]
[1733222091011,0.02140174,95524.0,95523.0,0.07043334]
[1733222091218,0.02140174,95524.0,95523.0,0.1437805]
[1733222091925,0.02140174,95524.0,95523.0,0.14563326]
[1733222092131,0.0008632,95525.0,95523.0,0.14563326]
[1733222092336,0.0008632,95525.0,95524.0,0.23653791]
[1733222092548,0.0008632,95525.0,95524.0,0.31933505]
[1733222092974,0.02215091,95525.0,95524.0,0.31934354]
[1733222093177,0.02215091,95525.0,95524.0,0.08464988]
[1733222094643,0.02215091,95525.0,95524.0,0.08850264]
[1733222095488,0.02215091,95525.0,95524.0,0.08650264]
[1733222095718,0.02215091,95525.0,95524.0,0.00185276]
[1733222095891,0.02315091,95525.0,95524.0,0.00785276]
[1733222096250,0.02315091,95525.0,95524.0,0.00985276]
[1733222096653,0.0018632,95525.0,95524.0,0.00985276]
[1733222102736,0.0018632,95525.0,95524.0,0.19761919]
[1733222102949,0.0018632,95525.0,95524.0,0.10739589]
[1733222103945,0.00040087,95529.0,95524.0,0.10739589]
[1733222104140,0.00040087,95529.0,95527.0,0.18774287]
[1733222104368,0.0205828,95528.0,95526.0,0.23653129]
[1733222104526,0.0205828,95528.0,95527.0,0.08834438]
[1733222105345,0.0205828,95528.0,95527.0,0.09242424]
[1733222105546,0.0205828,95528.0,95527.0,0.00407986]
[1733222105754,0.0205828,95528.0,95527.0,7.986e-05]
[1733222105957,0.0205828,95528.0,95527.0,0.00107986]
[1733222106607,0.00040087,95529.0,95527.0,0.00107986]
[1733222106807,0.00040087,95529.0,95528.0,0.18770219]
[1733222107061,0.00040087,95529.0,95528.0,0.28184951]
[1733222107267,0.00040087,95529.0,95528.0,0.28184991]
[1733222107474,0.00040087,95529.0,95528.0,0.09414732]
[1733222107679,0.00040087,95529.0,95527.0,0.18878245]
[1733222108095,0.00040087,95529.0,95527.0,0.18778245]
[1733222108325,0.00040087,95529.0,95527.0,0.19178245]
[1733222108538,0.00040087,95529.0,95528.0,0.209362]
[1733222108745,0.02188247,95529.0,95528.0,0.209362]
[1733222108954,0.02188247,95529.0,95528.0,0.31219346]
[1733222110032,0.01719371,95529.0,95528.0,0.31219346]
[1733222110942,0.01719371,95529.0,95528.0,0.31319346]
[1733222111174,0.01619371,95529.0,95528.0,0.31319346]
[1733222111403,0.00058601,95535.0,95528.0,0.31719346]
[1733222111632,0.00058601,95535.0,95529.0,0.10283146]
[1733222111862,0.20993501,95535.0,95529.0,0.10283146]
[1733222112096,0.0779,95533.0,95529.0,0.10283146]
[1733222112328,0.0779,95533.0,95528.0,0.004]
[1733222112561,0.209353,95532.0,95527.0,7.986e-05]
[1733222112962,0.209353,95532.0,95529.0,0.001]
[1733222113203,0.0779,95533.0,95527.0,7.986e-05]
[1733222113406,0.209353,95532.0,95527.0,7.986e-05]
[1733222114381,0.209362,95528.0,95527.0,7.986e-05]
[1733222114853,0.209164,95528.0,95527.0,7.986e-05]
[1733222115254,0.209164,95528.0,95527.0,0.00307986]
[1733222115473,0.209164,95528.0,95527.0,7.986e-05]
[1733222115804,0.209164,95528.0,95527.0,0.00507986]
[1733222116217,0.02134848,95530.0,95527.0,0.05274885]
[1733222116821,0.0008632,95532.0,95527.0,0.24045144]
[1733222117020,0.0008632,95532.0,95527.0,0.24145144]
[1733222117475,0.0008632,95532.0,95527.0,0.23645144]
[1733222117677,0.0008632,95532.0,95527.0,0.24045144]
[1733222118080,0.0008632,95532.0,95527.0,0.23545144]
[1733222118283,0.0008632,95532.0,95527.0,0.23645144]
[1733222118484,0.0008632,95532.0,95528.0,0.07604791]
[1733222119477,0.0008632,95532.0,95527.0,0.23945144]
[1733222119679,0.0008632,95532.0,95527.0,0.23845144]
[1733222119885,0.14045478,95534.0,95527.0,0.23845144]
[1733222120295,0.2052735,95535.0,95527.0,0.05074885]
[1733222120706,0.4146225,95535.0,95527.0,0.05074885]
[1733222120906,0.4146225,95535.0,95528.0,0.03163797]
[1733222121431,0.4146225,95535.0,95528.0,0.03463797]
[1733222121760,0.209349,95534.0,95528.0,0.03163797]
[1733222121965,0.0008634,95536.0,95528.0,0.03263797]
[1733222122167,0.0008634,95536.0,95529.0,0.05574888]
[1733222122464,0.02145241,95530.0,95529.0,0.05574888]
[1733222123202,0.209355,95532.0,95528.0,0.001]
[1733222123806,0.209355,95532.0,95529.0,0.001]
[1733222124240,0.209347,95535.0,95528.0,0.001]
[1733222124442,0.209347,95535.0,95527.0,0.04774885]
[1733222124648,0.209347,95535.0,95529.0,0.004]
[1733222124848,0.22334958,95535.0,95529.0,0.004]
[1733222125053,0.22334958,95535.0,95527.0,7.986e-05]
[1733222125264,0.209347,95535.0,95528.0,0.001]